Workbook

Sheet Začetek
B1: O TEJ PREDLOGI
B2: S tem delovnim zvezkom »Proračun dogodka« lahko spremljate nastale stroške in prihodek, prislužen med dogodkom.
B3: Vnesite ime dogodka in podrobnosti na delovni list »Stroški« in »Prihodek«.
B4: Vrednosti »Skupni stroški« in »Prihodki skupaj« so izračunani samodejno.
B5: Grafikon »Povzetek dobička in izgube« je samodejno posodobljen na delovnem listu »Povzetek«.
B6: Opomba:
B7: Dodatna navodila so na voljo v stolpcu A na vsakem delovnem listu. To besedilo je bilo skrito namenoma. Če želite besedilo premakniti, izberite stolpec A, nato izberite še IZBRIŠI. Če želite besedilo razkriti, izberite stolpec A, nato zamenjajte barvo pisave.
B8: Za več informacij o tabelah v tabeli pritisnite tipko SHIFT in nato tipko F10 ter izberite možnost TABELA in nato še NADOMESTNO BESEDILO.

Sheet Stroški
A1: Vnesite predvideno in dejansko stroške za vsako kategorijo v ustrezne tabele na tem delovnem listu. Vrednost »Stroški skupaj« je izračunana samodejno. Uporabna navodila za uporabo tega delovnega lista najdete v celicah v tem stolpcu. Puščica dol za začetek dela.
A2: Vnesite ime dogodka v celico na desni, da prilagodite naslov tega delovnega lista in drugih delovnih listov. | B2: Proračun dogodka za Ime dogodka
A3: Oznaka »Stroški« je v celici G3. | G3: Stroški
A4: Oznaka »Predvideno« je v celici G4, oznaka »Dejansko« pa v celici H4. | G4: Predvideno | H4: Dejansko
A5: Oznaka »Skupni stroški« je v celici na desni. Predvideno stroški in Skupni stroški so samodejno izračunani v celici G5. Dejanski Skupni stroški in podatkovna vrstica, ki prikazuje dejansko Skupni stroški, so samodejno posodobljeni v celici H5. Naslednji korak je v celici A7. | B5: Skupni stroški | G5: =SUM(C12,C20,C26,C33,G12,G20,G25) -> 1,145.00 € | H5: =SUM(D12,D20,D26,D33,H12,H20,H25) -> 395.00 €
A7: Vnesite stroški mesta v tabelo z začetkom v celici na desni, stroški za okrepčila pa v tabelo z začetkom v celici F7. Naslednji korak je v celici A14. | B7: Prizorišče | C7: Predvideno | D7: Dejansko | F7: Pijača in prigrizki | G7: Predvideno | H7: Dejanski
B8: Stroški najema sobe in dvorane | C8: 500.00 € | D8: 250.00 € | F8: Hrana
B9: Osebje na prizorišču | C9: 400.00 € | D9: 50.00 € | F9: Pijača
B10: Oprema | F10: Prti
B11: Mize in stoli | F11: Osebje in napitnine
B12: Vsota | C12: =SUBTOTAL(109,StroškiMesta[Predvideno]) -> 900.00 € | D12: =SUBTOTAL(109,StroškiMesta[Dejansko]) -> 300.00 € | F12: Vsota | G12: =SUBTOTAL(109,StroškiZaOkrepčila[Predvideno]) -> 0.00 € | H12: =SUBTOTAL(109,StroškiZaOkrepčila[Dejanski]) -> 0.00 €
A14: Vnesite stroški za dekoracije v tabelo z začetkom v celici na desni, stroški programa pa v tabelo z začetkom v celici F14. Naslednji korak je v celici A22. | B14: Dekoracija | C14: Predvideno | D14: Dejansko | F14: Program | G14: Predvideno | H14: Dejanski
B15: Cvetje | C15: 200.00 € | D15: 50.00 € | F15: Izvajalci
B16: Sveče | F16: Govorci
B17: Osvetlitev | F17: Potovanje
B18: Baloni | F18: Hotel
B19: Papir | F19: Drugo
B20: Vsota | C20: =SUBTOTAL(109,StroškiZaDekoracije[Predvideno]) -> 200.00 € | D20: =SUBTOTAL(109,StroškiZaDekoracije[Dejansko]) -> 50.00 € | F20: Vsota | G20: =SUBTOTAL(109,StroškiPrograma[Predvideno]) -> 0.00 € | H20: =SUBTOTAL(109,StroškiPrograma[Dejanski]) -> 0.00 €
A22: Vnesite stroški promocije materiala v tabelo z začetkom v celici na desni, stroški za nagrade pa v tabelo z začetkom v celici F22. Naslednje navodilo je v celici A28. | B22: Promocijski material | C22: Predvideno | D22: Dejansko | F22: Nagrade | G22: Predvideno | H22: Dejansko
B23: Grafika | C23: 45.00 € | D23: 45.00 € | F23: Manšete/plakete/trofeje
B24: Fotokopiranje/tiskanje | F24: Darila
B25: Poštnina | F25: Vsota | G25: =SUBTOTAL(109,StroškiZaNagrade[Predvideno]) -> 0.00 € | H25: =SUBTOTAL(109,StroškiZaNagrade[Dejansko]) -> 0.00 €
B26: Vsota | C26: =SUBTOTAL(109,StroškiPromocije[Predvideno]) -> 45.00 € | D26: =SUBTOTAL(109,StroškiPromocije[Dejansko]) -> 45.00 €
A28: Vnesite razni stroški v tabelo z začetkom v celici na desni. | B28: Razno | C28: Predvideno | D28: Dejansko
B29: Telefon
B30: Prevoz
B31: Pisarniška oprema
B32: Faks
B33: Vsota | C33: =SUBTOTAL(109,RazniStroški[Predvideno]) -> 0.00 € | D33: =SUBTOTAL(109,RazniStroški[Dejansko]) -> 0.00 €

Sheet Prihodek
A1: Vnesite predvideno in dejansko prihodke za vsako kategorijo v ustrezne tabele na tem delovnem listu. Prihodek skupaj je samodejno izračunan. Uporabna navodila za uporabo tega delovnega lista najdete v celicah v tem stolpcu. Puščica dol za začetek dela.
A2: Ime dogodka se samodejno posodobi v celici na desni strani. | B2: =Stroški!B2 -> Proračun dogodka za Ime dogodka
A3: Oznaka »Prihodek« je v celici F3. | F3: Prihodek
A4: Oznaka »Predvideno« je v celici F4, oznaka »Dejansko« pa v celici G4. | F4: Predvideno | G4: Dejansko
A5: Oznaka »Prihodki skupaj« je v celici na desni. Predviden prihodek skupaj je samodejno izračunan v celici F5. Dejansko skupaj skupaj in podatkovna vrstica, ki prikazujeta Dejansko skupaj skupaj, sta samodejno posodobljena v celici G5. | B5: Prihodki skupaj | F5: =SUM(Vstopnice[[#Totals],[Predviden prihodek]],OglasiVProgramu[[#Totals],[Predviden prihodek]],RazstavljalciInDobavitelji[[#Totals],[Predviden prihodek]],ProdajaIzdelka[[#Totals],[Predviden prihodek]]) -> 1,936.00 € | G5: =SUM(Vstopnice[[#Totals],[Dejansko skupaj]],OglasiVProgramu[[#Totals],[Dejansko skupaj]],RazstavljalciInDobavitelji[[#Totals],[Dejansko skupaj]],ProdajaIzdelka[[#Totals],[Dejansko skupaj]]) -> 1,831.00 €
A6: Oznaka za vstopnina je v celici na desni. | B6: Vstopnina
A7: Vnesite predvideno in dejansko število vstopnin s cenami vstopnic v tabelo z začetkom v celici na desni. Predvideo in dejansko prihodek z naslova vstopnina je samodejno izračunan. Naslednje navodilo je v celici A12. | B7: Predvideno | C7: Dejansko | D7: Vrsta | E7: Cena | F7: Predviden prihodek | G7: Dejansko skupaj
B8: 300 | C8: 278 | D8: Odrasli @ | E8: 5.00 € | F8: =B8*E8 -> 1,500.00 € | G8: =C8*E8 -> 1,390.00 €
B9: 197 | C9: 195 | D9: Otroci @ | E9: 2.00 € | F9: =B9*E9 -> 394.00 € | G9: =C9*E9 -> 390.00 €
B10: 42 | C10: 51 | D10: Drugo @ | E10: 1.00 € | F10: 42.00 € | G10: 51.00 €
F11: =SUBTOTAL(109,Vstopnice[Predviden prihodek]) -> 1,936.00 € | G11: =SUBTOTAL(109,Vstopnice[Dejansko skupaj]) -> 1,831.00 €
A12: Oznaka za oglase v programu je v celici na desni. | B12: Oglasi v programu
A13: Vnesite predvideno in dejansko število oglasov v programu ter tarife oglasov v tabelo z začetkom v celici na desni. Predvideno in dejansko prihodek z naslova Oglasi v programu izračunan. Naslednje navodilo je v celici A18. | B13: Predvideno | C13: Dejansko | D13: Vrsta | E13: Cena | F13: Predviden prihodek | G13: Dejansko skupaj
D14: Naslovnice @ | F14: =B14*E14 -> 0.00 € | G14: =C14*E14 -> 0.00 €
D15: Polovica strani @ | F15: =B15*E15 -> 0.00 € | G15: =C15*E15 -> 0.00 €
D16: Četrtina strani @ | F16: 0.00 € | G16: 0.00 €
F17: =SUBTOTAL(109,OglasiVProgramu[Predviden prihodek]) -> 0.00 € | G17: =SUBTOTAL(109,OglasiVProgramu[Dejansko skupaj]) -> 0.00 €
A18: Oznaka za razstavljavce ali prodajalce je v celici na desni. | B18: Razstavljavci/prodajalci
A19: Vnesite predvideno in dejansko število razstavljavci in prodajalci ter tarife za stojnice v tabelo z začetkom v celici na desni. Predvideo in dejansko prihodek je izračunan samodejno. Naslednje navodilo je v celici A24. | B19: Predvideno | C19: Dejansko | D19: Vrsta | E19: Cena | F19: Predviden prihodek | G19: Dejansko skupaj
D20: Velika stojnica @ | F20: =B20*E20 -> 0.00 € | G20: =C20*E20 -> 0.00 €
D21: Srednje velika stojnica @ | F21: =B21*E21 -> 0.00 € | G21: =C21*E21 -> 0.00 €
D22: Mala stojnica @ | F22: 0.00 € | G22: 0.00 €
F23: =SUBTOTAL(109,RazstavljalciInDobavitelji[Predviden prihodek]) -> 0.00 € | G23: =SUBTOTAL(109,RazstavljalciInDobavitelji[Dejansko skupaj]) -> 0.00 €
A24: Oznaka za prodajo element je v celici na desni. | B24: Prodaja elementov
A25: Vnesite predvideno in dejansko število Prodaja elementov in tarife elementov v tabelo z začetkom v celici na desni. Predvideno in dejansko prihodek je izračunan samodejno. | B25: Predvideno | C25: Dejansko | D25: Vrsta | E25: Cena | F25: Predviden prihodek | G25: Dejansko skupaj
D26: Elementi @ | F26: =B26*E26 -> 0.00 € | G26: =C26*E26 -> 0.00 €
D27: Elementi @ | F27: =B27*E27 -> 0.00 € | G27: =C27*E27 -> 0.00 €
D28: Elementi @ | F28: 0.00 € | G28: 0.00 €
D29: Elementi @ | F29: 0.00 € | G29: 0.00 €
F30: =SUBTOTAL(109,ProdajaIzdelka[Predviden prihodek]) -> 0.00 € | G30: =SUBTOTAL(109,ProdajaIzdelka[Dejansko skupaj]) -> 0.00 €

Sheet Povzetek
A1: Povzetek dobička in izgube ter grafikon, ki prikazuje prihodek skupaj in stroške, so samodejno posodobljeni na tem delovnem listu. Uporabna navodila za uporabo tega delovnega lista najdete v celicah v tem stolpcu. Puščica dol za začetek dela.
A2: Ime dogodka se samodejno posodobi v celici na desni strani. | B2: =Stroški!B2 -> Proračun dogodka za Ime dogodka
A3: Oznaka za povzetek dobička in izgube je v celici C3. Naslednji korak je v celici A5. | C3: Povzetek dobička in izgube
A5: Tabela s Vsota vrednostjo z začetkom v celici na desni je samodejno posodobljena. Naslednji korak je v celici A9. | B5: Vsota | C5: Predvideno | D5: Dejansko
B6: Prihodek skupaj | C6: =Prihodek!F5 -> 1,936.00 € | D6: =Prihodek!G5 -> 1,831.00 €
B7: Stroški skupaj | C7: =Stroški!G5 -> 1,145.00 € | D7: =Stroški!H5 -> 395.00 €
B8: Dobiček skupaj (ali izguba) | C8: =C6-C7 -> 791.00 € | D8: =D6-D7 -> 1,436.00 €
A9: Gručni stolpčni grafikon s prikazano primerjavo predvideno in dejansko prihodek skupaj ter Stroški skupaj je v celici na desni. | B9: Gručni stolpčni grafikon, ki prikazuje primerjavo predvideno in dejansko prihodka skupaj ter stroškov skupaj, je v tej celici.
